bitfinex-derivatives/quotes_ETHF0:USTF0_20250518
["timestamp","ask_amount","ask_price","bid_price","bid_amount"]
[1747545602933,0.79855,2503.8,2503.6,17.265]
[1747545603234,3.2078,2504.0,2503.6,17.265]
[1747545603235,1.3211,2503.7,2503.6,17.265]
[1747545603426,1.3211,2503.7,2503.5,3.2078]
[1747545603632,0.79863,2503.5,2503.3,1.3437]
[1747545603832,1.3211,2503.4,2503.3,18.6117]
[1747545604028,1.3211,2503.4,2503.3,17.265]
[1747545604235,0.79875,2503.2,2502.9,8.476]
[1747545604539,0.79876,2503.1,2502.9,8.476]
[1747545604730,2.11986,2503.1,2502.9,8.476]
[1747545604935,1.3211,2503.1,2502.9,8.476]
[1747545605137,1.3211,2503.1,2502.7,4.4486]
[1747545605138,1.3211,2503.1,2502.7,3.2078]
[1747545605338,1.3211,2503.1,2502.6,8.476]
[1747545605538,0.79894,2502.6,2502.4,17.26]
[1747545605743,2.12006,2502.5,2502.4,8.476]
[1747545605941,1.3211,2502.5,2502.4,8.476]
[1747545606542,2.12005,2502.5,2502.4,8.476]
[1747545606837,0.79898,2502.4,2502.3,3.2078]
[1747545607042,2.15348,2502.4,2502.3,3.2078]
[1747545607341,5.21148,2502.4,2502.3,3.2078]
[1747545608442,4.4125,2502.4,2502.3,3.2078]
[1747545608644,5.21148,2502.4,2502.3,3.2078]
[1747545608842,4.4125,2502.4,2502.3,3.2078]
[1747545609040,5.21148,2502.4,2502.3,3.2078]
[1747545609644,0.79908,2502.1,2501.8,0.79915]
[1747545609945,1.3479,2502.0,2501.8,0.79915]
[1747545610139,1.3479,2502.0,2501.7,44.19909]
[1747545610341,3.2078,2502.4,2502.3,0.79901]
[1747545610534,2.0013,2503.5,2502.3,25.5158]
[1747545610733,2.0013,2503.5,2502.9,3.2078]
[1747545610936,2.0013,2503.5,2503.2,3.2078]
[1747545611238,1.3479,2503.5,2503.4,0.79866]
[1747545612744,1.3479,2503.5,2503.3,2.15158]
[1747545612940,1.3479,2503.5,2503.4,0.79866]
[1747545613358,1.3479,2503.5,2503.3,2.15157]
[1747545613557,1.3479,2503.5,2503.2,3.2078]
[1747545613759,1.3479,2503.5,2503.3,17.345]
[1747545614054,3.2078,2503.9,2503.5,0.79861]
[1747545614260,3.2078,2503.9,2503.3,17.345]
[1747545614261,1.3146,2503.8,2503.4,1.2704]
[1747545614457,3.2078,2503.5,2502.9,11.6818]
[1747545614661,1.3146,2503.4,2503.3,0.79869]
[1747545614857,1.3146,2503.4,2503.3,2.06909]
[1747545615062,1.2563,2503.9,2503.3,18.6254]
[1747545615268,1.2563,2503.9,2503.7,0.79855]
[1747545615567,1.2563,2503.9,2503.8,0.79853]
[1747545616159,4.3143,2503.9,2503.8,0.79853]
[1747545616357,2.08676,2503.9,2503.8,9.00633]
[1747545616564,2.08676,2503.9,2503.8,31.34687836]
[1747545616761,2.08676,2503.9,2503.8,14.62737836]
[1747545616958,2.08676,2503.9,2503.8,9.62737836]
[1747545617271,3.058,2504.3,2504.2,0.79841]
[1747545618057,3.058,2504.3,2504.2,29.58965085]
[1747545618265,3.2078,2504.9,2504.2,28.79124085]
[1747545618471,3.2078,2504.9,2504.8,0.79821]
[1747545618762,4.52305565,2505.2,2505.1,0.79812]
[1747545618957,4.52305565,2505.2,2505.0,0.79813]
[1747545619158,7.58105565,2505.2,2504.8,4.49999319]
[1747545619361,3.2078,2504.9,2504.5,0.79829]
[1747545619566,6.2658,2505.2,2504.7,0.79823]
[1747545619758,6.2658,2505.2,2504.6,4.56507755]
[1747545619966,6.2658,2505.2,2504.5,18.112]
[1747545620165,6.2658,2505.2,2504.5,3.2078]
[1747545620371,6.2658,2505.2,2505.0,0.79813]
[1747545620570,6.2658,2505.2,2504.6,23.99257755]
[1747545620765,6.2658,2505.2,2505.1,0.79812]
[1747545621063,6.2658,2505.2,2504.9,18.145]
[1747545621460,6.2658,2505.2,2505.1,0.79812]
[1747545621662,0.02172935,2505.1,2504.8,18.155]
[1747545621862,0.02172935,2505.1,2504.5,18.157]
[1747545622063,0.02172935,2505.1,2504.6,1.2984]
[1747545622367,3.07972935,2505.1,2505.0,0.79815]
[1747545622672,3.07972935,2505.1,2504.6,5.5645819]
[1747545622973,3.07972935,2505.1,2504.9,0.79816]
[1747545623163,8.98,2505.0,2504.6,4.2661819]
[1747545623364,3.2078,2504.7,2504.3,1.17430071]
[1747545623567,1.4757,2504.6,2504.3,1.17430071]
[1747545623866,0.6774,2504.6,2504.0,1.2984]
[1747545624067,3.7354,2504.6,2504.0,10.2784]
[1747545624269,3.7354,2504.6,2504.5,0.79831]
[1747545625066,3.7354,2504.6,2504.3,0.79835]
[1747545625974,3.058,2504.6,2504.5,0.79831]
[1747545626473,0.02172935,2505.1,2505.0,0.79815]
[1747545626676,0.02172935,2505.1,2505.0,9.77815]
[1747545627067,0.02172935,2505.1,2505.0,11.12175]
[1747545627370,9.6053,2506.2,2505.0,11.12175]
[1747545627371,6.2658,2507.3,2505.3,3.2078]
[1747545627561,3.2078,2507.1,2505.9,3.2078]
[1747545627767,0.79772,2506.4,2505.9,3.2078]
[1747545627967,0.79787,2505.9,2505.6,3.2078]
[1747545628272,1.3738,2506.2,2505.6,3.2078]
[1747545628465,1.3738,2506.2,2505.9,3.2078]
[1747545628667,1.3738,2506.2,2505.9,4.00564]
[1747545628968,1.3738,2506.2,2505.6,3.2078]
[1747545629171,3.058,2506.2,2505.9,3.2078]
[1747545629369,3.058,2506.2,2506.0,4.59574784]
[1747545629673,1.3738,2506.1,2505.9,13.43366]
[1747545630073,4.4318,2506.1,2505.9,13.43366]
[1747545630274,4.4318,2506.1,2505.9,12.6358]
[1747545630967,4.4318,2506.1,2505.9,3.2078]
[1747545631169,4.4318,2506.1,2505.8,9.428]
[1747545631376,3.058,2506.1,2506.0,5.04707122]
[1747545631771,3.058,2506.1,2506.0,2.08653]
[1747545631968,3.058,2506.1,2506.0,9.426]
[1747545632170,3.85582,2506.1,2505.6,4.00575]
[1747545632364,1.3352,2506.0,2505.7,9.426]
[1747545632569,2.13304,2506.0,2505.6,3.2078]
[1747545632771,0.79786,2505.9,2505.6,12.6338]
[1747545632973,1.3352,2505.8,2505.6,13.5115812]
[1747545633379,1.3352,2505.8,2505.6,12.7136212]
[1747545633779,1.3352,2505.8,2505.6,13.5115612]
[1747545633982,1.3352,2505.8,2505.6,3.2876212]
[1747545634183,4.3932,2505.8,2505.6,3.2876212]
[1747545634375,4.3932,2505.8,2505.7,0.79793]
[1747545635386,4.3932,2505.8,2505.6,3.2876212]
[1747545635587,4.3932,2505.8,2505.7,0.79793]
[1747545636781,4.3932,2505.8,2505.6,4.0855712]
[1747545637282,4.3932,2505.8,2505.6,3.2876212]
[1747545637478,0.79793,2505.7,2505.6,0.0798212]
[1747545637674,0.79809,2505.2,2505.0,3.2078]
[1747545637877,0.79809,2505.2,2505.1,1.25349986]
[1747545638183,0.79821,2504.8,2504.7,1.17683785]
[1747545638380,0.79821,2504.8,2504.7,1.25668773]
[1747545638583,5.79821,2504.8,2504.7,1.25668773]
[1747545639082,8.85621,2504.8,2504.7,1.25668773]
[1747545639282,0.79828,2504.6,2504.5,1.57455993]
[1747545639478,11.2658,2504.8,2504.1,3.2078]
[1747545639682,0.79832,2504.5,2504.2,0.79839]
[1747545640287,0.79837,2504.4,2504.1,3.2078]
[1747545640585,3.85632,2504.5,2504.1,3.2078]
[1747545640780,3.058,2504.5,2504.1,3.2078]
[1747545640976,3.058,2504.5,2504.4,4.00614]
[1747545641382,3.058,2504.5,2504.4,8.33287753]
[1747545641783,3.058,2504.5,2504.4,9.69207753]
[1747545641987,0.79795,2505.7,2505.2,0.79807]
[1747545642283,1.3353,2505.6,2505.3,5.36505]
[1747545642484,0.79802,2505.4,2505.3,3.2078]
[1747545642787,1.3353,2505.6,2505.3,4.00585]
[1747545642986,1.3353,2505.6,2505.4,0.79802]
[1747545643292,3.058,2505.6,2505.5,0.79799]
[1747545644286,3.058,2505.6,2505.5,2.16349]
[1747545645893,3.058,2505.6,2505.5,1.3655]
[1747545646194,1.2861,2505.9,2505.5,1.3655]
[1747545646195,2.08398,2505.9,2505.5,2.16348]
[1747545646489,2.08398,2505.9,2505.7,3.2078]
[1747545646689,0.7979,2505.8,2505.7,3.2078]
[1747545646881,2.0387,2505.8,2505.7,3.2078]
[1747545647082,4.2988,2505.8,2505.7,3.2078]
[1747545647491,5.0967,2505.8,2505.7,3.2078]
[1747545648189,0.79799,2505.6,2505.4,9.425]
[1747545648392,1.2408,2505.5,2505.3,0.79804]
[1747545648590,1.2408,2505.5,2505.4,0.79802]
[1747545648782,1.2408,2505.5,2505.3,4.00584]
[1747545649187,4.2988,2505.5,2505.3,4.00584]
[1747545649483,4.2988,2505.5,2505.3,3.2078]
[1747545649681,3.058,2505.5,2505.4,0.79802]
[1747545649889,3.058,2505.5,2505.4,2.15822]
[1747545650087,1.2743,2505.9,2505.8,0.7979]
[1747545650687,1.2743,2505.9,2505.8,2.1581]
[1747545651190,4.3323,2505.9,2505.8,2.1581]
[1747545651893,3.058,2505.9,2505.8,2.1581]
[1747545652196,1.2477,2506.2,2505.9,0.79786]
[1747545652391,1.2477,2506.2,2506.0,5.29033]
[1747545652587,2.04549,2506.2,2506.0,3.2078]
[1747545652894,0.7978,2506.1,2506.0,3.2078]
[1747545653095,2.0455,2506.1,2506.0,3.2078]
[1747545653286,4.3057,2506.1,2506.0,3.2078]
[1747545653597,4.3057,2506.1,2506.0,4.00563]
[1747545653983,5.1035,2506.1,2505.8,2.08258]
[1747545654397,4.3057,2506.1,2505.8,1.2847]
[1747545654594,4.3057,2506.1,2505.9,4.00564]
[1747545654983,3.058,2506.1,2506.0,0.79783]
[1747545655184,0.48023969,2506.3,2506.2,0.79777]
[1747545655389,0.48023969,2506.3,2506.2,4.00557]
[1747545656191,0.48023969,2506.3,2506.2,5.17542771]
[1747545656693,0.48023969,2506.3,2506.2,11.54352771]
[1747545656893,0.48023969,2506.3,2506.2,15.9932848]
[1747545657293,0.48023969,2506.3,2506.2,34.8742848]
[1747545657793,0.48023969,2506.3,2506.2,10.9932848]
[1747545657993,0.48023969,2506.3,2506.2,29.8922848]
[1747545658188,0.48023969,2506.3,2506.2,10.9932848]
[1747545658392,0.48023969,2506.3,2506.2,6.54352771]
[1747545659798,0.48023969,2506.3,2506.2,24.61375771]
[1747545659994,0.48023969,2506.3,2506.2,25.41152771]
[1747545660195,0.48023969,2506.3,2506.2,24.61375771]
[1747545660695,0.48023969,2506.3,2506.2,4.5759]
[1747545661098,3.53823969,2506.3,2506.2,4.5759]
[1747545661293,3.53823969,2506.3,2505.9,14.22735993]
[1747545661498,0.79783,2506.0,2505.9,14.22735993]
[1747545662203,0.79793,2505.7,2505.2,6.34683535]
[1747545662407,0.79793,2505.7,2505.2,7.66953535]
[1747545662701,0.79799,2505.6,2505.2,4.5305]
[1747545662895,0.79807,2505.3,2505.0,10.22314]
[1747545663105,3.058,2505.6,2505.2,3.2078]
[1747545663403,3.058,2505.6,2505.0,10.7477]
[1747545663404,3.058,2505.6,2505.5,4.00579]
[1747545663604,3.058,2505.6,2505.5,22.90479]
[1747545663798,3.058,2505.6,2505.5,24.0576553]
[1747545663998,3.058,2505.6,2505.5,24.0486553]
[1747545664195,3.058,2505.9,2505.5,4.3606653]
[1747545664496,1.3697,2505.8,2505.5,1.1528653]
[1747545664701,0.79796,2505.6,2505.5,1.1528653]
[1747545664901,1.3697,2505.8,2505.5,4.3606653]
[1747545665102,3.058,2505.6,2505.5,4.3606653]
[1747545665298,3.058,2505.6,2505.5,5.1586553]
[1747545665501,3.058,2505.6,2505.5,4.00579]
[1747545665801,3.058,2505.6,2505.5,3.2078]
[1747545666907,3.058,2505.6,2505.5,4.00579]
[1747545667993,3.058,2505.6,2505.4,0.79801]
[1747545668201,1.2655,2505.5,2505.4,0.79801]
[1747545668400,3.058,2505.6,2505.5,0.79799]
[1747545668703,3.058,2505.6,2505.5,4.00579]
[1747545670306,3.058,2505.6,2505.5,3.2078]
[1747545671007,4.412,2505.6,2505.5,4.00579]
[1747545671306,4.412,2505.6,2505.5,5.25059]
[1747545671603,5.20996,2505.6,2505.5,3.2078]
[1747545671909,4.412,2505.6,2505.5,3.2078]
[1747545672204,10.20996,2505.6,2505.5,3.2078]
[1747545672406,9.412,2505.6,2505.1,3.2078]
[1747545672604,0.624,2505.5,2505.1,3.2078]
[1747545672801,0.624,2505.5,2505.2,3.2078]
[1747545672802,1.3452,2505.4,2505.2,3.2078]
[1747545673107,0.79805,2505.3,2505.2,3.2078]
[1747545673404,0.79815,2505.1,2504.8,3.2078]
[1747545673606,0.79825,2504.7,2504.4,3.2078]
[1747545673907,0.79837,2504.3,2504.2,3.13903535]
[1747545674100,3.058,2504.3,2504.2,3.13903535]
[1747545674407,3.85637,2504.3,2504.2,3.13903535]
[1747545674706,5.20157,2504.3,2504.2,6.34683535]
[1747545674901,4.4032,2504.3,2504.2,4.00621]
[1747545675102,4.4032,2504.3,2503.9,3.2078]
[1747545675607,0.79845,2504.1,2503.8,0.79852]
[1747545675808,1.3541,2504.0,2503.8,0.79852]
[1747545676000,1.3541,2504.0,2503.6,3.2078]
[1747545676198,0.6462,2503.9,2503.6,4.00638]
[1747545676410,2.15263,2503.8,2503.6,3.2078]
[1747545676608,1.3541,2503.8,2503.6,3.2078]
[1747545676814,1.3541,2503.8,2503.6,4.00638]
[1747545677005,1.3541,2503.8,2503.6,3.2078]
[1747545677212,4.4121,2503.8,2503.6,3.2078]
[1747545677413,5.21063,2503.8,2503.6,3.2078]
[1747545677715,4.4121,2503.8,2503.6,3.2078]
[1747545678311,4.4121,2503.8,2503.7,0.79856]
[1747545678510,4.4121,2503.8,2503.6,3.2078]
[1747545678708,4.4121,2503.8,2503.6,4.00638]
[1747545678904,0.79856,2503.7,2503.6,3.2078]
[1747545679111,5.21936,2503.7,2503.6,3.2078]
[1747545679819,9.4208,2503.7,2503.2,3.2078]
[1747545680019,0.79869,2503.3,2503.2,3.2078]
[1747545680205,6.41723,2503.7,2502.9,3.2078]
[1747545680410,0.79878,2503.1,2502.9,4.5531]
[1747545680716,1.3628,2503.0,2502.9,4.5531]
[1747545681217,4.4208,2503.0,2502.9,5.35192]
[1747545681412,4.4208,2503.0,2502.9,4.5531]
[1747545681713,5.21959,2503.0,2502.9,3.2078]
[1747545681914,5.84619,2503.0,2502.9,3.2078]
[1747545682512,10.84619,2503.0,2502.9,3.2078]
[1747545682915,12.04439,2503.0,2502.2,1.3613]
[1747545683218,5.0474,2503.0,2502.2,3.2078]
[1747545683519,0.7989,2502.7,2502.3,1.3613]
[1747545683712,2.04842,2502.6,2502.3,0.79899]
[1747545683914,3.6846,2503.0,2502.5,3.2078]
[1747545684114,2.04833,2502.9,2502.6,2.16019]
[1747545684313,0.79885,2502.8,2502.6,2.16019]
[1747545684514,1.2495,2502.7,2502.6,2.16019]
[1747545684816,1.2495,2502.7,2502.2,3.2078]
[1747545685019,3.2078,2502.8,2502.2,3.2078]
[1747545685313,3.2078,2502.8,2502.7,0.79888]
[1747545685520,3.2078,2502.8,2502.6,0.7989]
[1747545686119,6.2658,2502.8,2502.6,0.7989]
[1747545686619,6.2658,2502.8,2502.5,0.79893]
[1747545687021,7.06465,2502.8,2502.5,0.79893]
[1747545687221,6.2658,2502.8,2502.6,0.79891]
[1747545687521,7.06466,2502.8,2502.4,0.79896]
[1747545687821,7.06466,2502.8,2502.5,0.79894]
[1747545688310,6.2658,2502.8,2502.7,0.79888]
[1747545688507,6.2658,2502.8,2502.6,0.7989]
[1747545688718,6.2658,2502.8,2502.3,19.9263]
[1747545689220,3.2078,2502.8,2502.7,0.79888]
[1747545690023,1.4254,2503.0,2502.7,0.79888]
[1747545690322,1.4254,2503.0,2502.8,1.2557]
[1747545690522,0.79882,2502.9,2502.8,1.2557]
[1747545690717,0.79882,2502.9,2502.6,3.2078]
[1747545691119,3.058,2502.9,2502.6,4.5805]
[1747545691418,0.79888,2502.7,2502.6,4.5805]
[1747545691819,0.799,2502.4,2502.3,3.2078]
[1747545692019,0.799,2502.4,2502.3,3.3326749]
[1747545692511,0.799,2502.4,2502.3,3.2078]
[1747545693311,3.857,2502.4,2502.3,3.2078]
[1747545693721,3.058,2502.4,2502.3,3.2078]
[1747545694231,0.79908,2502.1,2501.6,3.2078]
[1747545694523,11.2658,2502.4,2501.9,0.79912]
[1747545694524,0.79906,2502.2,2501.9,0.79912]
[1747545694716,0.6483,2502.3,2502.1,3.2078]
[1747545694917,0.79906,2502.2,2501.8,4.5272]
[1747545695119,4.50532,2502.3,2502.0,0.79908]
[1747545695320,0.79904,2502.2,2501.9,0.79912]
[1747545695517,0.79906,2502.2,2502.0,0.79911]
[1747545696023,0.79906,2502.2,2501.9,2.11853]
[1747545696225,0.79906,2502.2,2502.0,0.12489617]
[1747545696523,0.79906,2502.2,2502.0,1.3194]
[1747545696715,0.6483,2502.3,2502.1,0.92396325]
[1747545696916,0.6483,2502.3,2502.1,0.79907]
[1747545697119,3.7063,2502.3,2501.9,0.79913]
[1747545697326,3.7063,2502.3,2502.0,0.12489424]
[1747545697619,0.79905,2502.2,2502.1,1.37319424]
[1747545697825,0.79905,2502.2,2502.1,1.2483]
[1747545698216,5.14135,2502.2,2502.1,1.37319454]
[1747545698417,5.14135,2502.2,2502.1,1.37319382]
[1747545699529,3.058,2502.2,2502.1,5.38007382]
[1747545699922,3.058,2502.2,2502.1,4.58834014]
[1747545700123,0.79899,2502.4,2502.1,4.58834014]
[1747545700322,0.799,2502.4,2502.2,1.44888093]
[1747545700622,0.799,2502.4,2502.3,0.12488093]
[1747545701230,8.857,2502.4,2502.3,0.12488093]
[1747545701430,19.4837,2502.4,2502.3,0.12488093]
[1747545702028,0.79904,2502.2,2502.1,0.00734632]
[1747545702330,0.79904,2502.2,2502.1,0.13224196]
[1747545702525,0.79904,2502.2,2502.1,3.34004196]
[1747545702725,0.79904,2502.2,2502.1,0.13224196]
[1747545703330,3.85704,2502.2,2502.1,0.13224196]
[1747545705325,3.85704,2502.2,2502.1,1.50764196]
[1747545705726,3.85704,2502.2,2502.1,1.50764023]
[1747545706630,3.85704,2502.2,2502.1,0.13224023]
[1747545707525,3.85704,2502.2,2502.1,0.13223982]
[1747545707725,0.79917,2501.8,2501.7,3.2078]
[1747545708230,3.85717,2501.8,2501.7,3.2078]
[1747545708627,5.17817,2501.8,2501.7,3.2078]
[1747545710135,0.7992,2501.7,2501.6,1.3688]
[1747545710328,2.1419,2501.7,2501.6,1.3688]
[1747545710827,0.79929,2501.5,2501.3,4.00712]
[1747545711132,0.79929,2501.5,2501.4,1.3496]
[1747545711629,0.79925,2501.6,2501.4,2.1489]
[1747545711836,5.19992,2501.7,2501.4,2.14888]
[1747545712034,5.19992,2501.7,2501.6,3.2078]
[1747545712237,2.14192,2501.7,2501.6,3.2078]
[1747545712927,0.79926,2501.6,2501.4,1.3496]
[1747545713137,0.79927,2501.5,2501.4,1.3496]
[1747545714627,0.7993,2501.4,2501.3,1.17166802]
[1747545715137,3.8573,2501.4,2501.3,1.17166802]
[1747545715940,3.8573,2501.4,2501.3,4.37946802]
[1747545716146,0.7993,2501.4,2501.3,4.37946802]
[1747545716642,0.7993,2501.4,2501.3,3.2078]
[1747545717141,3.8573,2501.4,2501.3,1.3762]
[1747545717338,0.79939,2501.1,2501.0,3.2078]
[1747545717942,0.79939,2501.1,2501.0,4.35105097]
[1747545718138,0.6442,2501.5,2501.0,4.35105097]
[1747545718340,0.79937,2501.2,2501.0,5.15046097]
[1747545718547,0.79937,2501.2,2501.1,1.3762]
[1747545719243,3.85737,2501.2,2501.1,1.3762]
[1747545719744,3.85737,2501.2,2501.1,2.64439489]
[1747545720042,3.85737,2501.2,2501.1,1.26819489]
[1747545720244,3.85737,2501.2,2501.1,1.26819749]
[1747545720446,3.058,2501.2,2501.1,2.06758749]
[1747545720747,3.85736,2501.2,2501.1,2.64309749]
[1747545721247,3.058,2501.2,2501.1,3.44248749]
[1747545721637,3.058,2501.2,2501.1,3.44246511]
[1747545722147,0.7993,2501.4,2501.2,0.79936]
[1747545722355,0.79925,2501.6,2501.3,5.42923414]
[1747545722542,1.3538,2501.7,2501.4,0.12492414]
[1747545722743,0.79924,2501.6,2501.5,1.42212414]
[1747545723146,3.85724,2501.6,2501.5,1.42212414]
[1747545723346,3.85724,2501.6,2501.5,1.42211844]
[1747545723851,3.058,2501.6,2501.5,1.42211844]
[1747545724051,3.058,2501.6,2501.5,2.22138844]
[1747545724351,0.79921,2501.7,2501.5,1.42211844]
[1747545724648,0.79919,2501.8,2501.6,0.12491844]
[1747545724847,0.79919,2501.8,2501.7,1.39851844]
[1747545725151,3.85719,2501.8,2501.7,1.39851844]
[1747545725543,5.23329,2501.8,2501.7,1.39851844]
[1747545726659,3.058,2501.8,2501.7,1.39851844]
[1747545726846,3.058,2501.8,2501.7,1.39851005]
[1747545727243,3.058,2501.8,2501.7,2.19771005]
[1747545727549,3.93189587,2502.9,2502.5,0.79895]
[1747545727751,3.93189587,2502.9,2502.5,0.12491005]
[1747545727952,3.96474618,2502.6,2502.5,0.12491005]
[1747545728151,7.02274618,2502.6,2502.5,0.12491005]
[1747545728353,11.22382618,2502.6,2501.8,4.4863]
[1747545728651,0.79911,2502.0,2501.9,1.3443]
[1747545729158,3.85711,2502.0,2501.9,1.3443]
[1747545729353,3.058,2502.0,2501.9,1.3443]
[1747545729855,3.058,2502.0,2501.9,2.14344]
[1747545730158,0.79902,2502.3,2502.0,0.79911]
[1747545730363,0.79902,2502.3,2502.1,1.3443]
[1747545730656,0.79904,2502.2,2502.1,1.3443]
[1747545730845,3.2078,2502.4,2501.8,4.4863]
[1747545731047,0.79911,2502.0,2501.9,1.2801]
[1747545731864,0.79914,2501.9,2501.8,3.2078]
[1747545732051,2.04244,2501.9,2501.8,3.2078]
[1747545732564,1.2433,2501.9,2501.8,3.2078]
[1747545732758,3.058,2502.0,2501.8,4.00697]
[1747545732957,3.85711,2502.0,2501.9,1.2801]
[1747545734162,3.85711,2502.0,2501.8,3.2078]
[1747545734461,1.3121,2501.9,2501.8,3.2078]
[1747545734662,1.3121,2501.9,2501.8,4.5726]
[1747545736065,2.11124,2501.9,2501.8,4.5726]
[1747545736259,5.16924,2501.9,2501.8,4.5726]
[1747545739176,5.16924,2501.9,2501.8,3.2078]
[1747545740473,5.16924,2501.9,2501.8,3.33270716]
[1747545741469,5.16924,2501.9,2501.8,4.00697]
[1747545741776,5.16924,2501.9,2501.8,3.33270634]
[1747545741976,5.16924,2501.9,2501.8,0.12490634]
[1747545742675,5.84264,2501.9,2501.8,0.12490634]
[1747545743377,5.0435,2501.9,2501.8,0.12491672]
[1747545743573,10.84264,2501.9,2501.8,0.12491672]
[1747545745280,0.7993,2501.4,2501.3,1.2701]
[1747545745579,0.7993,2501.4,2501.3,1.39502411]
[1747545746176,3.8573,2501.4,2501.3,1.39502411]
[1747545746678,3.8573,2501.4,2501.3,0.12492411]
[1747545746973,0.79933,2501.3,2501.2,1.2958]
[1747545747176,5.12873,2501.3,2501.2,1.42072802]
[1747545747478,3.058,2501.3,2501.2,2.22008802]
[1747545747678,3.058,2501.3,2501.2,1.42072802]
[1747545748672,3.058,2501.3,2501.2,2.22008802]
[1747545748872,3.058,2501.3,2501.2,2.22008256]
[1747545749277,3.058,2501.3,2501.2,7.22008256]
[1747545749973,3.058,2501.3,2501.2,2.22008256]
[1747545750175,0.79933,2501.3,2501.2,1.42072256]
[1747545750775,0.6734,2501.9,2501.2,1.42072628]
[1747545750978,1.9768,2501.9,2501.7,0.79919]
[1747545751172,3.058,2501.9,2501.8,4.13189628]
[1747545751376,3.058,2501.9,2501.8,3.33272628]
[1747545751781,3.85714,2501.9,2501.8,3.33272628]
[1747545752379,5.13824,2501.9,2501.8,3.33269937]
[1747545752575,4.3391,2501.9,2501.8,3.33269937]
[1747545752776,4.3391,2501.9,2501.8,4.59569937]
[1747545753278,3.85714,2501.9,2501.8,4.59569937]
[1747545753780,5.13824,2501.9,2501.8,3.33269937]
[1747545753980,3.85714,2501.9,2501.8,3.33269937]
[1747545754180,3.058,2501.9,2501.8,4.13186874]
[1747545754379,3.058,2501.9,2501.8,5.39486874]
[1747545754578,3.058,2501.9,2501.8,4.59569874]
[1747545754779,3.85714,2501.9,2501.8,4.59569874]
[1747545754983,3.058,2501.9,2501.8,4.59569874]
[1747545756385,3.2078,2502.5,2501.8,31.92858879]
[1747545756682,2.71563,2502.6,2502.4,3.2078]
[1747545756879,2.71563,2502.6,2502.5,1.46709874]
[1747545758475,0.6327,2502.6,2502.5,1.46709874]
[1747545758785,1.43162,2502.6,2502.5,1.46709874]
[1747545759387,0.6327,2502.6,2502.5,1.46709874]
[1747545760179,1.43162,2502.6,2502.5,1.46709874]
[1747545760783,2.77782,2502.6,2502.5,0.12489874]
[1747545760984,7.77782,2502.6,2502.5,0.12489874]
[1747545761585,0.79895,2502.5,2502.4,3.2078]
[1747545761885,2.06845,2502.5,2502.4,3.33268788]
[1747545762283,0.79895,2502.5,2502.4,3.33268788]
[1747545763289,1.43163,2502.6,2502.4,4.63956885]
[1747545763489,1.43163,2502.6,2502.5,0.12486885]
[1747545763687,1.43163,2502.6,2502.5,1.43176885]
[1747545766477,2.77693,2502.6,2502.5,1.43176885]
[1747545767387,2.77693,2502.6,2502.5,0.12486885]
[1747545767786,11.53893,2502.6,2502.5,0.12486885]
[1747545767985,16.53893,2502.6,2502.5,0.12486885]
[1747545769491,7.77693,2502.6,2502.5,0.12486885]
[1747545769685,25.40493,2502.6,2502.5,0.12486885]
[1747545770592,0.79895,2502.5,2502.4,3.2078]
[1747545770792,19.65405,2502.5,2502.4,3.33268716]
[1747545771393,2.03905,2502.5,2502.4,3.33268716]
[1747545771795,19.64505,2502.5,2502.4,3.33268716]
[1747545771982,29.0513,2502.5,2501.6,3.2078]
[1747545772187,3.2078,2502.2,2501.6,3.2078]
[1747545772389,0.7992,2501.7,2501.6,4.4982]
[1747545774796,0.7992,2501.7,2501.6,1.2904]
[1747545774992,0.7993,2501.4,2501.3,3.8561]
[1747545775492,0.79929,2501.5,2501.3,3.8561]
[1747545776002,0.7993,2501.4,2501.3,3.8561]
[1747545776202,0.7993,2501.4,2501.3,5.2041]
[1747545777397,3.99358,2503.3,2501.3,5.2041]
[1747545777599,0.79917,2501.8,2501.7,3.2078]
[1747545781602,0.79925,2501.6,2501.4,4.5684]
[1747545781998,0.79925,2501.6,2501.4,5.36769]
[1747545782501,0.79922,2501.7,2501.4,4.5684]
[1747545782705,0.79922,2501.7,2501.4,5.36769]
[1747545783201,0.79922,2501.7,2501.5,0.79926]
[1747545783402,0.79922,2501.7,2501.6,1.3574]
[1747545784097,0.79909,2502.1,2501.6,1.48231101]
[1747545784302,1.3004,2502.3,2501.8,4.00696]
[1747545784505,1.2557,2502.2,2501.9,1.48231101]
[1747545784696,0.79908,2502.1,2502.0,0.12491101]
[1747545785108,1.2557,2502.2,2502.0,0.92402101]
[1747545785406,4.0068,2502.4,2502.1,2.28137101]
[1747545785711,4.0068,2502.4,2502.2,1.41001101]
[1747545785899,4.0068,2502.4,2502.3,0.12491101]
[1747545787206,0.79901,2502.3,2502.2,1.2851]
[1747545787509,0.79901,2502.3,2502.2,1.40998527]
[1747545787899,1.2577,2502.7,2502.2,1.40998527]
[1747545788103,1.2577,2502.7,2502.3,1.55198527]
[1747545788304,0.79895,2502.5,2502.4,1.40997214]
[1747545789705,0.79895,2502.5,2502.4,0.12487214]
[1747545790104,0.79902,2502.3,2502.1,21.7879]
[1747545790302,0.79899,2502.4,2502.2,1.41198198]
[1747545790503,0.79899,2502.4,2502.3,0.12488198]
[1747545790711,2.599,2502.7,2502.3,0.12488198]
[1747545791007,3.39792,2502.7,2502.6,3.2078]
[1747545791209,3.39792,2502.7,2502.6,3.33268198]
[1747545791403,2.76602,2502.7,2502.6,3.33268198]
[1747545792609,0.79887,2502.8,2502.6,3.33268198]
[1747545792809,0.79887,2502.8,2502.7,1.44548198]
[1747545794714,0.79882,2502.9,2502.7,1.44545633]